bitfinex-derivatives/quotes_ETHF0:USTF0_20250320
["timestamp","ask_amount","ask_price","bid_price","bid_amount"]
[1742442394512,5.25287,2029.0,2028.9,3.57919789]
[1742442396829,5.25287,2029.0,2028.9,2.79068789]
[1742442397021,5.25287,2029.0,2028.9,3.57919789]
[1742442400426,4.4644,2029.0,2028.9,3.57919789]
[1742442401024,5.25287,2029.0,2028.9,3.57919789]
[1742442402233,4.4644,2029.0,2028.9,3.57919789]
[1742442403739,4.4644,2029.0,2028.9,4.20947785]
[1742442405337,5.25287,2029.0,2028.9,4.20947785]
[1742442405538,4.4644,2029.0,2028.9,4.20947785]
[1742442407033,5.25287,2029.0,2028.9,4.20947785]
[1742442407235,4.4644,2029.0,2028.9,4.20947785]
[1742442407641,5.25287,2029.0,2028.9,4.20947785]
[1742442407843,4.4644,2029.0,2028.9,4.20947785]
[1742442408643,5.25287,2029.0,2028.9,4.20947785]
[1742442408848,5.25287,2029.0,2028.9,2.72676785]
[1742442409139,5.25287,2029.0,2028.9,2.03656785]
[1742442409545,5.25287,2029.0,2028.9,1.40628789]
[1742442411243,5.25287,2029.0,2028.9,2.19479789]
[1742442412348,5.25287,2029.0,2028.9,2.825844]
[1742442420563,1.3194,2029.0,2028.9,2.825844]
[1742442420856,0.6775,2029.2,2029.1,0.78843]
[1742442421061,3.8904,2029.3,2029.2,0.78839]
[1742442421062,7.14118,2029.3,2029.2,0.78839]
[1742442421763,7.14118,2029.3,2029.2,1.41943611]
[1742442422162,7.14118,2029.3,2029.2,0.78839]
[1742442422364,7.14118,2029.3,2029.1,1.3267]
[1742442422365,0.78839,2029.2,2029.1,2.1151]
[1742442422565,2.11769,2029.2,2029.1,2.1151]
[1742442422765,2.11769,2029.2,2029.1,2.74721655]
[1742442424355,1.3293,2029.2,2029.1,2.74721655]
[1742442433963,2.11769,2029.2,2029.1,2.74721655]
[1742442434166,1.969,2029.2,2029.1,2.74721655]
[1742442435161,5.96519,2029.2,2029.1,0.63211655]
[1742442435462,0.78847,2029.0,2028.9,0.79588789]
[1742442435663,0.78847,2029.0,2028.9,1.27858789]
[1742442435864,0.78847,2029.0,2028.9,0.00738789]
[1742442436165,2.13977,2029.0,2028.9,0.00738789]
[1742442436856,2.13977,2029.0,2028.9,0.79589789]
[1742442437056,2.13977,2029.0,2028.9,2.06709789]
[1742442438065,2.13977,2029.0,2028.9,1.27858789]
[1742442439465,2.13977,2029.0,2028.9,2.06709789]
[1742442440460,2.13977,2029.0,2028.9,0.79589789]
[1742442440667,2.13977,2029.0,2028.9,0.00738789]
[1742442441066,2.13977,2029.0,2028.9,1.39458789]
[1742442441570,2.13977,2029.0,2028.9,2.18309789]
[1742442442164,2.13977,2029.0,2028.9,1.39458789]
[1742442444867,2.13977,2029.0,2028.9,2.18309789]
[1742442445269,2.13977,2029.0,2028.9,1.39458789]
[1742442445462,2.13977,2029.0,2028.9,0.00738789]
[1742442446263,2.13977,2029.0,2028.9,1.31158789]
[1742442448665,2.13977,2029.0,2028.9,0.00738789]
[1742442448970,2.77907,2029.0,2028.9,0.00738789]
[1742442451568,1.97131,2028.9,2028.4,0.78867]
[1742442451767,1.97131,2028.9,2028.5,1.2961]
[1742442451768,0.78862,2028.6,2028.5,1.2961]
[1742442451972,0.78862,2028.6,2028.5,1.92729242]
[1742442452359,2.78042,2028.6,2028.5,1.92729242]
[1742442453071,2.78042,2028.6,2028.5,1.2961]
[1742442453575,0.78866,2028.5,2028.4,1.3463]
[1742442453776,2.14236,2028.5,2028.4,2.6946]
[1742442453977,2.14236,2028.5,2028.4,3.4833]
[1742442454176,5.28636,2028.5,2028.4,3.4833]
[1742442454674,0.7887,2028.4,2028.3,0.00738789]
[1742442454872,2.8331,2028.4,2028.3,0.00738789]
[1742442459277,8.7931,2028.4,2028.3,0.00738789]
[1742442461280,0.78878,2028.2,2028.1,0.7039]
[1742442461482,3.93378,2028.2,2028.1,2.0211]
[1742442462077,5.32908,2028.2,2028.1,2.0211]
[1742442465278,5.32908,2028.2,2028.1,1.3172]
[1742442476587,0.78882,2028.1,2028.0,4.5482]
[1742442476782,2.81862,2028.1,2028.0,4.5482]
[1742442477191,6.02642,2028.1,2028.0,1.3404]
[1742442477984,6.02642,2028.1,2028.0,2.6577]
[1742442480485,5.32552,2028.1,2028.0,2.6577]
[1742442483889,5.32552,2028.1,2028.0,1.9613]
[1742442484995,0.78885,2028.0,2027.9,0.00738789]
[1742442485298,5.88985,2028.0,2027.9,1.28218789]
[1742442490797,5.24395,2028.0,2027.9,1.28218789]
[1742442491301,1.3101,2028.0,2027.9,2.07107789]
[1742442491498,3.145,2028.0,2027.9,2.70294448]
[1742442491703,3.93385,2028.0,2027.9,2.70294448]
[1742442492404,0.78885,2028.0,2027.9,1.91405448]
[1742442492705,5.28015,2028.0,2027.9,1.28218789]
[1742442494507,5.28015,2028.0,2027.9,2.07107789]
[1742442495102,5.28015,2028.0,2027.9,1.91409219]
[1742442495513,5.28015,2028.0,2027.9,1.28218789]
[1742442497900,5.28015,2028.0,2027.9,1.91416423]
[1742442498708,5.28015,2028.0,2027.9,1.28218789]
[1742442501011,5.28015,2028.0,2027.9,1.91428201]
[1742442503712,5.28015,2028.0,2027.9,0.00738789]
[1742442506911,0.78919,2027.2,2027.0,0.78922]
[1742442507100,0.78923,2027.1,2026.9,0.78926]
[1742442507304,0.78927,2027.0,2026.8,3.2078]
[1742442507505,0.78927,2027.0,2026.8,3.9971]
[1742442508015,0.78927,2027.0,2026.9,1.42091017]
[1742442508215,0.78927,2027.0,2026.9,4.12381017]
[1742442509411,2.19532789,2027.1,2027.0,0.78924]
[1742442509715,0.79659789,2027.1,2027.0,1.3064]
[1742442510109,0.79659789,2027.1,2027.0,2.09564]
[1742442510309,0.79659789,2027.1,2027.0,1.3064]
[1742442511508,0.79659789,2027.1,2027.0,2.09564]
[1742442511509,0.00738789,2027.1,2027.0,2.09564]
[1742442512602,0.79659789,2027.1,2027.0,2.09564]
[1742442512915,0.00738789,2027.1,2027.0,2.09564]
[1742442513311,0.00738789,2027.1,2026.7,0.00738789]
[1742442513312,0.78932,2026.8,2026.7,0.00738789]
[1742442513511,7.14212,2026.8,2026.7,0.00738789]
[1742442517426,7.14212,2026.8,2026.7,1.28808789]
[1742442517722,14.91438195,2026.8,2025.8,3.2078]
[1742442517928,0.78959,2026.1,2026.0,0.78962]
[1742442518132,3.95359,2026.1,2026.0,2.10332]
[1742442518824,3.95359,2026.1,2026.0,1.3137]
[1742442520416,3.95359,2026.1,2026.0,2.10333]
[1742442520620,2.10888,2026.2,2026.1,0.78959]
[1742442520823,5.27188,2026.2,2026.1,2.12029]
[1742442521023,5.27188,2026.2,2026.1,1.3307]
[1742442521527,5.27188,2026.2,2026.1,2.12029]
[1742442523130,1.97401,2026.1,2025.8,0.00498727]
[1742442523332,5.18199,2025.9,2025.2,5.18263]
[1742442523633,0.78987,2025.4,2025.3,44.19638]
[1742442523832,0.78987,2025.4,2025.3,43.4065]
[1742442524418,0.78987,2025.4,2025.3,44.19641]
[1742442525727,1.3932,2025.5,2025.3,43.4065]
[1742442525928,2.18303,2025.5,2025.4,1.385]
[1742442526129,2.18303,2025.5,2025.4,2.17487]
[1742442526332,2.18303,2025.5,2025.4,1.385]
[1742442526532,2.18303,2025.5,2025.4,2.17487]
[1742442526836,3.22538789,2025.6,2025.4,2.17487]
[1742442526837,4.01520789,2025.6,2025.5,0.78983]
[1742442527127,4.01520789,2025.6,2025.5,2.16563]
[1742442527430,4.01520789,2025.6,2025.5,42.96563]
[1742442529528,3.22538789,2025.6,2025.5,42.96563]
[1742442530329,4.01517789,2025.6,2025.5,42.96563]
[1742442530724,3.22538789,2025.6,2025.5,42.96563]
[1742442530925,0.00738789,2025.6,2025.5,41.58983]
[1742442531130,2.13637789,2025.6,2025.5,41.58983]
[1742442531827,2.13637789,2025.6,2025.5,40.8]
[1742442532230,2.13637789,2025.6,2025.4,1.3357]
[1742442532231,0.78983,2025.5,2025.4,1.3357]
[1742442532429,5.34103,2025.5,2025.4,1.3357]
[1742442534131,6.00273,2025.5,2025.4,1.3357]
[1742442534332,6.00273,2025.5,2025.4,2.12557]
[1742442535140,6.00273,2025.5,2025.4,1.3357]
[1742442536135,6.00273,2025.5,2025.4,2.12557]
[1742442536336,6.00273,2025.5,2025.4,1.3357]
[1742442537038,6.00273,2025.5,2025.4,2.12557]
[1742442537241,4.5512,2025.5,2025.4,2.12557]
[1742442537438,4.5512,2025.5,2025.4,2.76317]
[1742442537639,3.212,2025.5,2025.4,2.76317]
[1742442538041,4.00183,2025.5,2025.4,2.76317]
[1742442538248,3.212,2025.5,2025.4,2.76317]
[1742442538742,4.5504,2025.5,2025.4,2.76317]
[1742442540738,3.212,2025.5,2025.4,2.76317]
[1742442541240,3.21138789,2025.6,2025.5,0.78983]
[1742442541436,4.54128789,2025.6,2025.5,2.75923]
[1742442542849,5.33107789,2025.6,2025.5,2.75923]
[1742442545148,0.00738789,2025.6,2025.5,2.75923]
[1742442545340,0.00738789,2025.6,2025.5,3.43304233]
[1742442545640,0.00738789,2025.6,2025.5,4.06321208]
[1742442545941,3.99257,2026.2,2026.1,0.78959]
[1742442549035,3.99257,2026.2,2026.1,1.45799]
[1742442549235,4.5021,2026.3,2026.2,0.78956]
[1742442549541,5.29162,2026.3,2026.2,2.13596]
[1742442549737,0.00738789,2026.4,2026.3,0.78952]
[1742442549943,0.00738789,2026.4,2026.3,2.13592]
[1742442550544,0.00738789,2026.4,2026.3,2.76682038]
[1742442551048,1.31128789,2026.4,2026.3,2.76682038]
[1742442551347,1.31128789,2026.4,2026.3,2.13592]
[1742442556049,1.31128789,2026.4,2026.2,3.99733]
[1742442556245,0.687,2026.3,2026.2,0.78953]
[1742442556443,0.687,2026.3,2026.2,2.13643]
[1742442556638,1.47652,2026.3,2026.2,1.3469]
[1742442556833,0.78959,2026.1,2026.0,2.1365]
[1742442557543,2.09969,2026.1,2026.0,2.1365]
[1742442560141,0.78963,2026.0,2025.9,3.90388789]
[1742442560336,2.79233,2026.0,2025.9,3.21518789]
[1742442561042,2.79233,2026.0,2025.9,4.59688789]
[1742442561349,2.79233,2026.0,2025.9,5.38655789]
[1742442561948,2.0027,2026.0,2025.9,5.38655789]
[1742442562146,2.79233,2026.0,2025.9,5.38655789]
[1742442562644,2.0027,2026.0,2025.9,5.38655789]
[1742442562845,1.3101,2026.0,2025.9,5.38655789]
[1742442566651,1.3101,2026.0,2025.9,6.01721041]
[1742442569655,3.2,2026.1,2026.0,0.78963]
[1742442569859,1.45754,2026.3,2026.0,1.3324]
[1742442570054,1.3922,2026.2,2026.1,0.78959]
[1742442570257,1.3922,2026.2,2026.1,1.43179]
[1742442570757,1.3922,2026.2,2026.1,2.06290697]
[1742442571657,4.63788789,2026.4,2026.3,0.78952]
[1742442571850,6.03008789,2026.4,2026.3,0.78952]
[1742442572045,2.83808789,2026.4,2026.3,0.78952]
[1742442572252,2.83808789,2026.4,2026.3,2.12192]
[1742442573652,0.00738789,2026.4,2026.3,2.12192]
[1742442573851,0.00738789,2026.4,2026.3,2.79696116]
[1742442574255,0.00738789,2026.4,2026.3,3.428469]
[1742442574456,1.40618789,2026.4,2026.3,3.428469]
[1742442574651,1.40618789,2026.4,2026.3,2.75342784]
[1742442574848,2.19566789,2026.4,2026.3,0.63150784]
[1742442575362,2.19566789,2026.4,2026.1,1.43178]
[1742442575363,0.78952,2026.3,2026.1,1.43176]
[1742442575657,2.86082,2026.3,2026.2,0.78956]
[1742442575960,0.78956,2026.2,2026.1,2.81647]
[1742442576156,2.17316,2026.2,2026.1,1.3847]
[1742442576352,2.83176,2026.2,2026.1,0.78959]
[1742442576548,2.83176,2026.2,2026.1,0.63177352]
[1742442577061,2.83176,2026.2,2026.0,0.78961]
[1742442577262,1.3836,2026.1,2026.0,2.12921]
[1742442580661,1.3836,2026.1,2026.0,2.76099323]
[1742442582164,2.17319,2026.1,2026.0,2.76099323]
[1742442582768,2.17319,2026.1,2026.0,1.3396]
[1742442583466,2.17319,2026.1,2026.0,2.12923]
[1742442585168,2.17319,2026.1,2026.0,0.78963]
[1742442585766,2.17319,2026.1,2026.0,2.07643]
[1742442587571,0.78963,2026.0,2025.9,3.21518789]
[1742442587874,1.978,2026.0,2025.9,4.00485789]
[1742442588070,1.978,2026.0,2025.9,4.63694706]
[1742442588372,1.978,2026.0,2025.9,6.00754706]
[1742442588966,2.76763,2026.0,2025.9,6.00754706]
[1742442593374,2.76763,2026.0,2025.9,5.37545789]
[1742442595775,2.76763,2026.0,2025.9,6.00743142]
[1742442596866,1.978,2026.0,2025.9,6.00743142]
[1742442598176,2.76763,2026.0,2025.9,6.00743142]
[1742442599276,2.76763,2026.0,2025.9,5.21776142]
[1742442599478,3.2078,2026.2,2025.9,4.58578789]
[1742442599779,1.3532,2026.1,2026.0,2.11903]
[1742442599975,1.3532,2026.1,2026.0,3.48642929]
[1742442600178,1.3532,2026.1,2026.0,4.1182761]
[1742442600574,1.3532,2026.1,2026.0,3.44288258]
[1742442600771,2.14279,2026.1,2026.0,3.44288258]
[1742442601371,2.14279,2026.1,2026.0,1.96125258]
[1742442601580,5.31979,2026.1,2026.0,0.63185258]
[1742442601777,5.31979,2026.1,2025.9,3.21518789]
[1742442601778,0.78963,2026.0,2025.9,3.21518789]
[1742442601979,2.79763,2026.0,2025.9,3.21518789]
[1742442602976,2.79763,2026.0,2025.9,0.00738789]
[1742442603373,5.29763,2026.0,2025.9,0.00738789]
[1742442603579,0.78983,2025.5,2025.4,1.386]
[1742442603885,0.78987,2025.4,2025.3,0.78988]
[1742442604176,3.182,2025.4,2024.9,11.14296]
[1742442604378,3.182,2025.4,2025.2,0.78995]
[1742442604379,1.3821,2025.3,2025.2,0.78995]
[1742442604572,0.78995,2025.2,2025.1,42.97596]
[1742442604778,2.17204,2025.3,2025.2,0.78995]
[1742442604979,2.17204,2025.3,2025.2,2.17595]
[1742442605180,2.17204,2025.3,2025.2,2.01811391]
[1742442605984,1.3821,2025.3,2025.2,2.80806391]
[1742442606182,1.3821,2025.3,2025.2,0.63211391]
[1742442606183,2.17201,2025.3,2025.2,0.63211391]
[1742442606681,0.79014,2024.7,2024.6,3.2078]
[1742442606980,1.97503,2025.1,2024.6,3.2078]
[1742442606981,3.2078,2025.1,2024.6,3.2078]
[1742442607188,1.3949,2025.0,2024.6,3.2078]
[1742442607486,3.196,2024.9,2024.7,1.2856]
[1742442607781,0.79014,2024.7,2024.6,3.2078]
[1742442607987,3.98814,2024.7,2024.6,3.2078]
[1742442608178,0.79022,2024.5,2024.4,1.3486]
[1742442608675,1.3949,2024.6,2024.4,1.3486]
[1742442608876,0.79022,2024.5,2024.3,3.2078]
[1742442609179,1.3672,2024.4,2024.3,3.9981]
[1742442610592,2.15746,2024.4,2024.3,3.2078]
[1742442611178,1.3672,2024.4,2024.3,3.2078]
[1742442611384,1.3672,2024.4,2024.1,1.3452]
[1742442611581,1.3672,2024.4,2024.1,2.13556]
[1742442611582,3.198,2024.3,2024.1,2.13556]
[1742442611786,1.3672,2024.2,2024.1,2.13556]
[1742442611984,1.3672,2024.2,2024.1,1.3452]
[1742442612188,2.15754,2024.2,2024.0,3.2078]
[1742442612495,3.198,2024.1,2023.7,3.2078]
[1742442612685,0.79047,2023.9,2023.7,3.2078]
[1742442612881,4.5313,2023.8,2023.7,3.2078]
[1742442613285,4.5313,2023.8,2023.3,40.8]
[1742442613486,4.5313,2023.8,2023.6,3.2078]
[1742442613988,5.3218,2023.8,2023.5,0.7906]
[1742442614195,4.5313,2023.8,2023.6,0.79057]
[1742442614493,4.5313,2023.8,2023.5,0.79059]
[1742442615084,4.5313,2023.8,2023.6,0.79055]
[1742442615285,4.5313,2023.8,2023.3,44.0078]
[1742442615591,4.5313,2023.8,2023.5,0.79058]
[1742442615798,4.5313,2023.8,2023.6,0.79057]
[1742442616087,4.5313,2023.8,2023.7,0.79053]
[1742442616495,4.5313,2023.8,2023.6,3.2078]
[1742442616692,5.32179,2023.8,2023.6,3.2078]
[1742442616887,4.5313,2023.8,2023.6,3.2078]
[1742442617088,5.97972,2023.8,2023.6,3.2078]
[1742442617496,5.1892,2023.8,2023.6,3.2078]
[1742442617897,5.97971,2023.8,2023.6,3.2078]
[1742442619798,5.1892,2023.8,2023.6,3.99836]
[1742442619994,5.1892,2023.8,2023.6,3.2078]
[1742442620191,5.9797,2023.8,2023.5,0.79057]
[1742442620395,5.9797,2023.8,2023.6,0.79057]
[1742442620396,5.1892,2023.8,2023.6,0.79057]
[1742442620698,5.9797,2023.8,2023.5,0.79059]
[1742442621089,5.9797,2023.8,2023.6,1.3751]
[1742442621302,5.1892,2023.8,2023.6,2.16567]
[1742442621492,5.97971,2023.8,2023.6,2.16566]
[1742442621692,4.5313,2023.8,2023.7,0.79053]
[1742442621891,4.5313,2023.8,2023.7,2.11333]
[1742442622696,1.3273,2023.8,2023.7,2.11333]
[1742442622899,4.5263,2023.8,2023.7,2.11333]
[1742442623999,4.5253,2023.8,2023.7,2.11333]
[1742442625493,4.5253,2023.8,2023.7,1.3228]
[1742442625691,4.5253,2023.8,2023.7,2.11333]
[1742442627091,0.79056,2023.7,2023.5,0.79058]
[1742442627292,2.15026,2023.7,2023.5,0.79058]
[1742442627692,0.79056,2023.7,2023.6,1.3401]
[1742442627893,0.79059,2023.6,2023.4,0.79061]
[1742442628202,0.79059,2023.6,2022.6,3.2078]
[1742442628203,1.97674,2023.3,2022.6,3.2078]
[1742442628387,3.2078,2022.8,2022.3,10.5079]
[1742442628591,3.209,2022.7,2022.6,0.79096]
[1742442628809,3.2078,2022.8,2022.4,1.3401]
[1742442628987,6.4188,2022.8,2022.7,0.79092]
[1742442629401,0.00740631,2023.0,2022.7,1.3401]
[1742442629596,0.00740631,2023.0,2022.9,0.79084]
[1742442629899,6.4238,2023.4,2023.3,0.79069]
[1742442630099,6.4238,2023.4,2023.3,0.04023705]
[1742442630300,7.21445,2023.4,2023.3,0.04023705]
[1742442630707,7.21445,2023.4,2023.3,1.41563705]
[1742442630708,6.4238,2023.4,2023.3,1.41563705]
[1742442631000,6.4238,2023.4,2023.3,2.20632705]
[1742442631598,3.2078,2023.4,2023.3,2.20632705]
[1742442632303,3.2078,2023.4,2023.3,5.44332705]
[1742442632803,0.00740631,2023.6,2023.5,0.79061]
[1742442633103,0.00740631,2023.6,2023.5,0.83084705]
[1742442633694,0.6849,2024.0,2023.5,0.83084705]
[1742442633695,0.6849,2024.0,2023.9,0.79045]
[1742442633896,3.235,2024.0,2023.9,0.79045]
[1742442634096,3.99819,2024.1,2023.9,0.83068705]
[1742442634301,3.2078,2024.2,2024.1,0.79037]
[1742442635097,3.2078,2024.2,2024.1,0.83060705]
[1742442636702,0.00740631,2024.4,2024.3,0.7903]
[1742442637096,0.00740631,2024.4,2024.3,0.83053705]
[1742442637593,0.79766631,2024.4,2024.3,0.04023705]
[1742442637798,4.03666631,2024.4,2024.3,0.04023705]
[1742442639204,6.53666631,2024.4,2024.3,0.02497599]
[1742442639396,6.53666631,2024.4,2024.1,0.00740631]
[1742442639397,0.79034,2024.2,2024.1,0.00740631]
[1742442639600,7.23914,2024.2,2024.1,0.00740631]
[1742442641105,7.23914,2024.2,2024.1,1.40320631]
[1742442641605,6.4488,2024.2,2024.1,2.19357631]
[1742442642008,7.7499,2024.2,2024.1,2.19357631]
[1742442643505,8.54024,2024.2,2024.1,1.40320631]
[1742442643695,7.7499,2024.2,2024.1,1.40320631]
[1742442643900,7.7499,2024.2,2024.1,2.19357631]
[1742442644906,8.54024,2024.2,2024.1,2.19357631]
[1742442645704,8.54024,2024.2,2024.1,1.40320631]
[1742442648515,8.54024,2024.2,2024.1,2.19357631]
[1742442648717,8.54024,2024.2,2024.1,1.40320631]
[1742442651326,8.54024,2024.2,2024.1,2.19357631]
[1742442651814,8.54024,2024.2,2024.1,1.40320631]
[1742442652118,8.54024,2024.2,2024.1,2.19357631]
[1742442652417,7.7499,2024.2,2024.1,2.19357631]
[1742442652603,4.5089,2024.2,2024.1,2.19357631]
[1742442652913,3.2078,2024.2,2024.1,2.19357631]
[1742442660721,3.2078,2024.2,2024.1,0.00740631]
[1742442660722,3.99814,2024.2,2024.1,0.00740631]
[1742442661322,7.21914,2024.2,2024.1,0.00740631]
[1742442662216,8.58794,2024.2,2024.1,0.00740631]
[1742442667124,8.58794,2024.2,2024.1,1.32080631]
[1742442667425,8.58794,2024.2,2024.1,0.00740631]
[1742442672929,1.97608,2024.0,2023.4,44.0078]
[1742442673129,0.7906,2023.6,2023.5,1.3349]
[1742442673333,0.79065,2023.5,2023.3,3.2078]
[1742442673529,0.79065,2023.5,2023.4,42.1349]
[1742442674028,0.79065,2023.5,2023.4,42.92555]
[1742442674435,0.79065,2023.5,2023.4,42.1349]
[1742442674731,0.79065,2023.5,2023.4,1.3349]
[1742442676125,1.48855,2023.5,2023.4,2.12555]
[1742442676723,0.79065,2023.5,2023.4,2.12555]
[1742442677030,0.79061,2023.5,2023.4,2.12553]
[1742442677234,4.63668,2023.6,2023.4,1.3349]
[1742442677436,3.218,2023.7,2023.5,1.3669]
[1742442677627,3.218,2023.7,2023.6,1.46917]
[1742442678433,4.00853,2023.7,2023.6,0.6786]
[1742442678737,4.00853,2023.7,2023.5,2.15751]
[1742442678738,3.218,2023.7,2023.5,2.15751]
[1742442678924,3.99837,2023.6,2023.5,1.3669]
[1742442679739,4.00856,2023.7,2023.5,2.15749]
[1742442680040,4.00855,2023.7,2023.5,2.15749]
[1742442680222,4.00855,2023.7,2023.6,1.3249]
[1742442683840,3.218,2023.7,2023.6,2.11547]
[1742442684044,4.00853,2023.7,2023.6,2.11547]
[1742442684235,4.00853,2023.7,2023.6,1.3249]
[1742442687237,4.00853,2023.7,2023.6,2.11547]
[1742442688237,3.218,2023.7,2023.3,44.6864]
[1742442688440,0.79061,2023.5,2023.4,1.3763]
[1742442688944,1.46261,2023.5,2023.4,1.3763]
[1742442690544,0.79065,2023.4,2023.3,1.3763]
[1742442690731,0.79069,2023.3,2023.2,0.00740631]
[1742442690938,4.00369,2023.3,2023.2,1.38370631]
[1742442691245,7.21149,2023.3,2023.2,0.00740631]
[1742442692344,9.71149,2023.3,2023.2,0.00740631]
[1742442692844,1.97714,2022.9,2022.5,3.2078]
[1742442693040,0.79092,2022.7,2022.6,1.3394]
[1742442693235,5.2421,2022.8,2022.4,0.79101]
[1742442693540,0.791,2022.5,2022.4,2.13041]
[1742442693840,4.02,2022.5,2022.4,1.3394]
[1742442694240,0.79104,2022.4,2022.3,40.8]
[1742442694444,0.7911,2022.3,2022.2,0.79111]
[1742442694642,3.236,2022.3,2022.2,0.79111]
[1742442695141,3.236,2022.3,2022.1,0.6766]
[1742442695347,3.236,2022.3,2022.2,0.79112]
[1742442695549,3.236,2022.3,2022.2,2.07752]
[1742442695744,3.236,2022.3,2022.2,2.74562]
[1742442695943,3.21520631,2022.7,2022.2,1.9545]
[1742442696147,4.04096,2022.6,2022.5,0.79099]
[1742442696543,3.25,2022.6,2022.5,0.79099]
[1742442696849,4.5961,2022.6,2022.5,0.79099]
[1742442697042,4.5961,2022.6,2022.5,0.791]
[1742442697951,5.38706,2022.6,2022.5,0.791]
[1742442698148,4.5961,2022.6,2022.5,0.791]
[1742442698744,3.25,2022.6,2022.5,0.791]
[1742442699240,4.57680631,2022.7,2022.6,0.79096]
[1742442699443,3.25440631,2022.7,2022.6,0.79096]
[1742442700045,0.00740631,2022.7,2022.6,2.06496]
[1742442700754,1.30830631,2022.7,2022.6,2.06496]
[1742442701349,2.09924631,2022.7,2022.6,0.79096]
[1742442701548,1.30830631,2022.7,2022.6,0.79096]
[1742442702050,0.00740631,2022.7,2022.6,0.79096]
[1742442702251,1.30830631,2022.7,2022.6,0.79096]
[1742442702450,2.09922631,2022.7,2022.6,1.3115]
[1742442702646,2.78332631,2022.7,2022.6,1.3115]
[1742442702847,0.79097,2022.6,2022.4,2.10251]
[1742442703053,1.3009,2022.5,2022.4,2.10251]
[1742442703452,2.0919,2022.5,2022.4,1.3115]
[1742442703651,1.3009,2022.5,2022.4,2.10254]
[1742442703862,3.89930631,2022.7,2022.6,0.79096]
[1742442704148,3.21520631,2022.7,2022.6,0.79096]
[1742442704653,3.21520631,2022.7,2022.6,1.44656]
[1742442705454,0.00740631,2022.7,2022.6,1.44656]
[1742442705656,0.00740631,2022.7,2022.6,2.78546]
[1742442710358,0.00740631,2022.7,2022.6,1.9945]
[1742442710548,0.00740631,2022.7,2022.6,2.78546]
[1742442712357,0.79832631,2022.7,2022.6,1.9945]
[1742442712545,0.79832631,2022.7,2022.5,3.99878]
[1742442712546,2.08565631,2022.7,2022.5,3.99878]
[1742442712951,1.3874,2022.6,2022.5,3.99878]
[1742442715054,0.00740631,2022.7,2022.6,0.79096]
[1742442715260,0.00740631,2022.7,2022.6,1.44146]
[1742442718564,0.00740631,2022.7,2022.6,2.11670652]
[1742442718753,0.00740631,2022.7,2022.6,1.44146]
[1742442719553,0.00740631,2022.7,2022.6,2.1171078]
[1742442720769,0.00740631,2022.7,2022.6,1.44146]
[1742442720968,0.00740631,2022.7,2022.6,2.11763289]
[1742442721461,0.00740631,2022.7,2022.5,3.99878]
[1742442721663,0.79096,2022.6,2022.5,3.2078]
[1742442721964,0.79096,2022.6,2022.5,3.9988]
[1742442721965,2.634,2022.6,2022.5,3.9988]
[1742442722367,3.42496,2022.6,2022.5,3.9988]
[1742442723170,0.79103,2022.5,2022.3,0.79104]
[1742442723468,2.15253,2022.5,2022.3,0.79104]
[1742442723655,2.15253,2022.5,2022.3,0.79105]
[1742442723857,1.3615,2022.4,2022.3,0.79105]
[1742442724260,2.15254,2022.4,2022.3,0.79105]
[1742442724464,1.3615,2022.4,2022.3,0.79105]
[1742442725769,1.3615,2022.4,2022.3,1.46743409]
[1742442726072,4.5481,2022.6,2022.3,1.46743409]
[1742442726073,4.5793,2022.6,2022.5,0.791]
[1742442726272,5.9228,2022.6,2022.5,0.791]
[1742442728173,6.71378,2022.6,2022.4,1.342]
[1742442728370,2.0957,2022.5,2022.4,0.79101]
[1742442728574,2.0957,2022.5,2022.1,5.18569]
[1742442728575,2.09573,2022.5,2022.3,0.79106]
[1742442728770,1.3047,2022.4,2022.3,0.79106]
[1742442729370,2.09576,2022.4,2022.3,0.79108]
[1742442729678,1.3047,2022.4,2022.3,0.79108]
[1742442729879,4.5427,2022.4,2022.1,3.2078]
[1742442730076,0.79109,2022.3,2022.1,3.99893]
[1742442730376,0.6454,2022.2,2022.1,3.99893]
[1742442730575,2.12402,2022.2,2022.1,3.2078]
[1742442730772,5.8746,2022.2,2022.1,3.99896]
[1742442730975,6.66572,2022.2,2022.1,3.99896]
[1742442731175,4.03405,2022.4,2022.1,4.5928]
[1742442731365,0.79112,2022.2,2022.1,3.2078]
[1742442731681,4.03612,2022.2,2022.1,3.2078]
[1742442732676,0.79132,2021.7,2021.3,1.97864]
[1742442732876,0.79132,2021.7,2021.6,0.79133]
[1742442732877,6.4538,2021.7,2021.6,0.79133]
[1742442733069,7.24511,2021.7,2021.6,41.59133]
[1742442733269,6.4538,2021.7,2021.6,41.59133]
[1742442733680,6.4538,2021.7,2021.6,0.79133]
[1742442734790,6.4538,2021.7,2021.6,2.17253]
[1742442735688,3.2078,2021.7,2021.6,2.17253]
[1742442735886,3.2078,2021.7,2021.6,2.86633]
[1742442736081,3.2078,2022.0,2021.6,2.7674]
[1742442736287,3.2078,2022.0,2021.9,0.79123]
[1742442736587,3.2078,2022.0,2021.7,2.17249]
[1742442736588,0.79125,2021.9,2021.7,2.17249]
[1742442736890,2.09425,2021.9,2021.8,2.17247]
[1742442737283,2.09425,2021.9,2021.8,1.3812]
[1742442737692,0.79127,2021.8,2021.6,1.3862]
[1742442737997,4.567,2021.8,2021.7,2.17311]
[1742442738989,5.35827,2021.8,2021.7,2.17311]
[1742442739195,4.567,2021.8,2021.7,2.17311]
[1742442740888,7.8553,2022.1,2022.0,0.7912]
[1742442741197,8.4983,2022.1,2022.0,0.7912]
[1742442741490,9.28946,2022.1,2022.0,0.7912]
[1742442741695,8.4983,2022.1,2022.0,0.7912]
[1742442741893,9.28946,2022.1,2022.0,0.7912]
[1742442742196,8.4983,2022.1,2022.0,0.7912]